fUST/lending_fUST_20240629
["ID","MTS","AMOUNT","RATE_DAILY","PERIOD"]
[330598007,1719609044632,-227.79,0.00021917,4]
[330598008,1719609044640,-2069.86,0.00021917,4]
[330598009,1719609044650,-500.0,0.00021917,4]
[330598010,1719609044658,-5418.01,0.00021917,4]
[330598011,1719609044668,-826.19,0.00021917,4]
[330598012,1719609044678,-500.0,0.00021917,4]
[330598013,1719609044687,-500.0,0.00021917,4]
[330598014,1719609044700,-803.14,0.00021917,4]
[330598015,1719609044711,-60694.4,0.00021917,4]
[330598016,1719609044720,-503.49392318,0.00021917,4]
[330598017,1719609044732,-2175.07,0.00021917,4]
[330598018,1719609044742,-939.69,0.00021917,4]
[330598019,1719609044751,-3733.28,0.00021917,4]
[330598020,1719609044761,-500.0,0.00021917,2]
[330598021,1719609044770,-362.74829742,0.00021917,4]
[330598022,1719609044779,-500.0,0.00021917,4]
[330598023,1719609044789,-521.59,0.00021917,4]
[330598024,1719609044798,-500.0,0.00021917,4]
[330598025,1719609044808,-500.0,0.00021917,4]
[330598026,1719609044819,-500.0,0.00021917,4]
[330598027,1719609044828,-7121.33,0.00021917,4]
[330598028,1719609044838,-526.77873745,0.00021917,4]
[330598029,1719609044847,-834.09,0.00021917,4]
[330598030,1719609044856,-4094.82,0.00021917,4]
[330598031,1719609044865,-582.3,0.00021917,4]
[330598032,1719609044875,-1575.66,0.00021917,4]
[330598033,1719609044884,-689.13,0.00021917,4]
[330598034,1719609044893,-500.0,0.00021917,4]
[330598035,1719609044902,-1770.99,0.00021917,4]
[330598036,1719609044912,-505.25011435,0.00021917,4]
[330598037,1719609044921,-503.60026397,0.00021917,4]
[330598038,1719609044931,-500.0,0.00021917,4]
[330598039,1719609044940,-563.67,0.00021917,4]
[330598040,1719609044951,-12345.82,0.00021917,4]
[330598041,1719609044961,-651.08,0.00021917,4]
[330598042,1719609044970,-498.85190813,0.00021917,4]
[330598043,1719609044979,-500.0,0.00021917,4]
[330598044,1719609044988,-500.0,0.00021917,4]
[330598045,1719609044999,-500.0,0.00021917,4]
[330598046,1719609045011,-500.0,0.00021917,4]
[330598047,1719609045020,-1018.4,0.00021917,4]
[330598048,1719609045029,-500.0,0.00021917,4]
[330598049,1719609045040,-500.0,0.00021917,4]
[330598050,1719609045051,-500.0,0.00021917,4]
[330598051,1719609045061,-2468.56,0.00021917,4]
[330598052,1719609045071,-12723.98,0.00021917,4]
[330598053,1719609045080,-509.26835764,0.00021917,4]
[330598054,1719609045091,-501.54872956,0.00021917,4]
[330598055,1719609045100,-500.0,0.00021917,4]
[330598056,1719609045109,-1210.66,0.00021917,4]
[330598057,1719609045118,-500.0,0.00021917,4]
[330598058,1719609045127,-500.0,0.00021917,2]
[330598059,1719609045137,-553.02157359,0.00021917,4]
[330598060,1719609045146,-500.0,0.00021917,4]
[330598061,1719609045156,-500.0,0.00021917,4]
[330598062,1719609045166,-923.2,0.00021917,4]
[330598063,1719609045175,-2010.28,0.00021917,4]
[330598064,1719609045184,-500.0,0.00021917,4]
[330598065,1719609045194,-286.58753935,0.00021917,4]
[330598066,1719609045203,-11513.48,0.00021917,4]
[330598067,1719609045212,-500.0,0.00021917,4]
[330598068,1719609045221,-4814.91,0.00021917,4]
[330598069,1719609045230,-541.70400654,0.00021917,4]
[330598070,1719609045239,-505.29711123,0.00021917,4]
[330598071,1719609045248,-500.0,0.00021917,4]
[330598072,1719609045257,-500.0,0.00021917,4]
[330598073,1719609045266,-506.2,0.00021917,4]
[330598074,1719609045275,-501.0618539,0.00021917,4]
[330598075,1719609045284,-500.0,0.00021917,4]
[330598076,1719609045294,-10418.44,0.00021917,4]
[330598077,1719609045303,-429.06808233,0.00021917,4]
[330598078,1719609045312,-500.0,0.00021917,4]
[330598079,1719609045321,-520.79892135,0.00021917,4]
[330598080,1719609045330,-500.0,0.00021917,4]
[330598081,1719609045339,-500.0,0.00021917,4]
[330598082,1719609045348,-500.0,0.00021917,4]
[330598083,1719609045447,-500.0,0.00021917,4]
[330598084,1719609045457,-500.0,0.00021917,4]
[330598085,1719609045465,-655.11,0.00021917,4]
[330598086,1719609045475,-500.0,0.00021917,4]
[330598087,1719609045483,-959.34,0.00021917,4]
[330598088,1719609045493,-1894.29,0.00021917,4]
[330598089,1719609045502,-1813.93,0.00021917,4]
[330598090,1719609045511,-522.29226495,0.00021917,4]
[330598091,1719609045520,-500.0,0.00021917,4]
[330598092,1719609045530,-1063.6687762,0.00021917,4]
[330598093,1719609045539,-1715.47,0.00021917,4]
[330598094,1719609045548,-1262.66,0.00021917,4]
[330598095,1719609045557,-500.0,0.00021917,4]
[330598096,1719609045567,-500.0,0.00021917,4]
[330598097,1719609045576,-500.0,0.00021917,4]
[330598098,1719609045585,-500.0,0.00021917,4]
[330598099,1719609045594,-2194.15,0.00021917,4]
[330598100,1719609045604,-500.0,0.00021917,4]
[330598101,1719609045613,-761.05,0.00021917,4]
[330598102,1719609045622,-535.3,0.00021917,4]
[330598103,1719609045631,-1055.6,0.00021917,4]
[330598104,1719609045640,-1710.79,0.00021917,4]
[330598105,1719609045649,-500.0,0.00021917,4]
[330598106,1719609045659,-500.0,0.00021917,4]
[330598107,1719609045668,-528.59,0.00021917,4]
[330598108,1719609045676,-500.0,0.00021917,4]
[330598109,1719609045684,-500.0,0.00021917,4]
[330598110,1719609045696,-541.63210577,0.00021917,4]
[330598111,1719609045705,-500.0,0.00021917,4]
[330598112,1719609045715,-502.94919188,0.00021917,4]
[330598113,1719609045724,-500.0,0.00021917,4]
[330598114,1719609045734,-979.7,0.00021917,4]
[330598115,1719609045743,-500.0,0.00021917,4]
[330598116,1719609045753,-593.29567923,0.00021917,4]
[330598117,1719609045762,-501.45896971,0.00021917,4]
[330598118,1719609045772,-628.71,0.00021917,4]
[330598119,1719609045781,-1021.86,0.00021917,4]
[330598120,1719609045791,-750.32,0.00021917,4]
[330598121,1719609045800,-500.0,0.00021917,4]
[330598122,1719609045810,-500.0,0.00021917,4]
[330598123,1719609045819,-500.0,0.00021917,4]
[330598124,1719609045828,-586.77,0.00021917,4]
[330598125,1719609045837,-501.12919172,0.00021917,4]
[330598126,1719609045847,-501.34381935,0.00021917,4]
[330598127,1719609045856,-500.0,0.00021917,4]
[330598128,1719609045865,-151.0,0.00021917,2]
[330598129,1719609045876,-500.0,0.00021917,4]
[330598130,1719609045885,-151.0,0.00021917,2]
[330598131,1719609045894,-151.0,0.00021917,2]
[330598132,1719609045903,-10772.11,0.00021917,4]
[330598133,1719609045913,-740.26,0.00021917,4]
[330598134,1719609045922,-2850.21,0.00021917,4]
[330598135,1719609045931,-1461.16,0.00021917,4]
[330598136,1719609045940,-4038.76,0.00021917,4]
[330598137,1719609045951,-292.066496,0.00021917,2]
[330598138,1719609045960,-1018.02,0.00021917,4]
[330598139,1719609045970,-3099.44,0.00021917,4]
[330598140,1719609045979,-500.0,0.00021917,4]
[330598141,1719609045988,-4127.34,0.00021917,4]
[330598142,1719609045998,-669.76,0.00021917,4]
[330598143,1719609046009,-415.69264051,0.00021917,4]
[330598144,1719609046019,-546.35,0.00021917,4]
[330598145,1719609046029,-500.0,0.00021917,4]
[330598146,1719609046039,-600.27,0.00021917,4]
[330598147,1719609046047,-500.0,0.00021917,4]
[330598148,1719609046056,-500.0,0.00021917,4]
[330598149,1719609046066,-500.0,0.00021917,4]
[330598150,1719609046076,-500.0,0.00021917,4]
[330598151,1719609046088,-500.0,0.00021917,4]
[330598152,1719609046096,-4987.38,0.00021917,4]
[330598153,1719609046106,-502.05451035,0.00021917,4]
[330598154,1719609046115,-3352.17,0.00021917,4]
[330598155,1719609046125,-621.88,0.00021917,4]
[330598156,1719609046135,-500.0,0.00021917,4]
[330598157,1719609046143,-500.0,0.00021917,4]
[330598158,1719609046153,-683.47,0.00021917,4]
[330598159,1719609046162,-1525.02,0.00021917,4]
[330598160,1719609046171,-500.0,0.00021917,4]
[330598161,1719609046180,-23476.31,0.00021917,4]
[330598162,1719609046190,-500.0,0.00021917,4]
[330598163,1719609046200,-500.0,0.00021917,4]
[330598164,1719609046209,-500.0,0.00021917,4]
[330598165,1719609046218,-500.0,0.00021917,2]
[330598166,1719609046227,-6462.45,0.00021917,4]
[330598167,1719609046236,-500.0,0.00021917,4]
[330598168,1719609046246,-511.72707922,0.00021917,4]
[330598169,1719609046255,-9156.13,0.00021917,4]
[330598170,1719609046265,-1587.41,0.00021917,4]
[330598171,1719609046275,-7036.32,0.00021917,4]
[330598172,1719609046284,-500.0,0.00021917,4]
[330598173,1719609046293,-7036.32,0.00021917,4]
[330598174,1719609046302,-7036.32,0.00021917,4]
[330598175,1719609046311,-7036.32,0.00021917,4]
[330598176,1719609046320,-7036.32,0.00021917,4]
[330598177,1719609046329,-7036.32,0.00021917,4]
[330598178,1719609046339,-7036.32,0.00021917,4]
[330598179,1719609046348,-500.0,0.00021917,4]
[330598180,1719609046358,-500.0,0.00021917,4]
[330598181,1719609046367,-7036.32,0.00021917,4]
[330598182,1719609046376,-2718.89,0.00021917,4]
[330598183,1719609046386,-7036.32,0.00021917,4]
[330598184,1719609046395,-7036.32,0.00021917,4]
[330598185,1719609046404,-2807.05,0.00021917,4]
[330598186,1719609046413,-7036.32,0.00021917,4]
[330598187,1719609046423,-500.0,0.00021917,4]
[330598188,1719609046431,-500.0,0.00021917,4]
[330598189,1719609046441,-7036.32,0.00021917,4]
[330598190,1719609046456,-1320.21,0.00021917,4]
[330598191,1719609046466,-7036.32,0.00021917,4]
[330598192,1719609046475,-11697.5,0.00021917,4]
[330598193,1719609046485,-7036.32,0.00021917,4]
[330598194,1719609046497,-7036.32,0.00021917,4]
[330598195,1719609046506,-7036.32,0.00021917,4]
[330598196,1719609046516,-7036.32,0.00021917,4]
[330598197,1719609046526,-7036.32,0.00021917,4]
[330598198,1719609046535,-7036.32,0.00021917,4]
[330598199,1719609046544,-7036.32,0.00021917,4]
[330598200,1719609046553,-7036.32,0.00021917,4]
[330598201,1719609046562,-7036.32,0.00021917,4]
[330598202,1719609046571,-7036.32,0.00021917,4]
[330598203,1719609046580,-297.498208,0.00021918,2]
[330598204,1719609046590,-297.498208,0.00021918,2]
[330598205,1719609046599,-297.498208,0.00021918,2]
[330598206,1719609046608,-297.498208,0.00021918,2]
[330598207,1719609046617,-297.498208,0.00021918,2]
[330598208,1719609046626,-297.498208,0.00021918,2]
[330598209,1719609046635,-166.666666,0.00021918,2]
[330598210,1719609046645,-151.0,0.00021918,2]
[330598211,1719609046654,-151.0,0.00021918,2]
[330598212,1719609046664,-151.0,0.00021918,2]
[330598213,1719609046674,-772.0,0.00021986,2]
[330598214,1719609046684,-245.13376752,0.00022,2]
[330598215,1719609046700,-11229.81298346,0.00022,2]
[330598216,1719609046710,-160.52242727,0.00022,2]
[330598217,1719609046720,-500.0,0.00022,2]
[330598218,1719609046729,-500.0,0.00022,2]
[330598220,1719609046739,-500.0,0.00022,2]
[330598222,1719609046749,-500.0,0.00022,2]
[330598224,1719609046758,-500.0,0.00022,2]
[330598226,1719609046767,-500.0,0.00022,2]
[330598227,1719609046779,-500.0,0.00022,2]
[330598239,1719609046789,-500.0,0.00022,2]
[330598240,1719609046886,-500.0,0.00022,2]
[330598241,1719609046895,-500.0,0.00022,2]
[330598242,1719609046905,-500.0,0.00022,2]
[330598243,1719609046914,-500.0,0.00022,2]
[330598244,1719609046923,-500.0,0.00022,2]
[330598245,1719609046933,-500.0,0.00022,2]
[330598246,1719609046946,-500.0,0.00022,2]
[330598247,1719609046955,-275.62245543,0.00022,2]
[330598248,1719609046965,-151.0,0.00022,2]
[330598249,1719609046974,-150.0,0.00022076,2]
[330598251,1719609046983,-456.6,0.00022164,2]
[330598253,1719609046992,-202.47170482,0.0002217,2]
[330598255,1719609047007,-5000.0,0.00022185,2]
[330598257,1719609047016,-500.0,0.00022191,4]
[330598259,1719609047025,-190.10954824,0.00022191,4]
[330598261,1719609047035,-1053.33,0.00022191,4]
[330598263,1719609047047,-581.35,0.00022191,4]
[330598265,1719609047056,-500.0,0.00022191,4]
[330598267,1719609047066,-500.0,0.00022191,4]
[330598269,1719609047076,-500.0,0.00022191,4]
[330598271,1719609047087,-500.0,0.00022191,2]
[330598273,1719609047097,-2317.09,0.00022191,4]
[330598275,1719609047106,-500.0,0.00022191,4]
[330598277,1719609047115,-922.96,0.00022191,4]
[330598279,1719609047130,-834.68,0.00022191,4]
[330598281,1719609047139,-502.28606211,0.00022191,4]
[330598283,1719609047149,-541.48580681,0.00022191,4]
[330598285,1719609047158,-500.0,0.00022191,4]
[330598287,1719609047167,-500.0,0.00022191,4]
[330598289,1719609047176,-500.0,0.00022191,4]
[330598291,1719609047186,-500.0,0.00022191,4]
[330598293,1719609047196,-500.0,0.00022191,4]
[330598295,1719609047205,-803.38,0.00022191,4]
[330598297,1719609047215,-297.498208,0.00022191,7]
[330598299,1719609047223,-297.498208,0.00022191,7]
[330598301,1719609047232,-297.498208,0.00022191,7]
[330598303,1719609047242,-297.498208,0.00022191,7]
[330598305,1719609047252,-297.498208,0.00022191,7]
[330598307,1719609047261,-500.0,0.00022191,4]
[330598309,1719609047270,-297.498208,0.00022191,7]
[330598311,1719609047279,-297.498208,0.00022191,7]
[330598313,1719609047289,-297.498208,0.00022191,7]
[330598315,1719609047299,-297.498208,0.00022191,7]
[330598317,1719609047308,-297.498208,0.00022191,7]
[330598319,1719609047318,-566.31704123,0.00022191,4]
[330598321,1719609047327,-500.0,0.00022191,4]
[330598323,1719609047337,-1513.65,0.00022191,4]
[330598325,1719609047346,-500.0,0.00022191,4]
[330598327,1719609047356,-500.0,0.00022191,4]
[330598329,1719609047365,-266.51963524,0.00022191,4]
[330598331,1719609047374,-969.26,0.00022191,4]
[330598333,1719609047383,-500.0,0.00022191,4]
[330598335,1719609047393,-580.44,0.00022191,4]
[330598337,1719609047403,-1279.12,0.00022191,4]
[330598339,1719609047413,-500.0,0.00022191,4]
[330598341,1719609047422,-750.55,0.00022191,4]
[330598343,1719609047431,-517.44154422,0.00022191,4]
[330598345,1719609047440,-527.85,0.00022191,4]
[330598347,1719609047451,-762.9,0.00022191,4]
[330598348,1719609047460,-500.0,0.00022191,4]
[330598351,1719609047469,-500.0,0.00022191,4]
[330598352,1719609047479,-500.0,0.00022191,4]
[330598354,1719609047488,-794.3,0.00022191,4]
[330598357,1719609047497,-500.0,0.00022191,4]
[330598358,1719609047507,-500.0,0.00022191,4]
[330598360,1719609047516,-500.0,0.00022191,4]
[330598362,1719609047526,-500.0,0.00022191,4]
[330598364,1719609047535,-500.0,0.00022191,4]
[330598366,1719609047544,-500.0,0.00022191,4]
[330598368,1719609047553,-500.0,0.00022191,4]
[330598370,1719609047562,-500.0,0.00022191,4]
[330598372,1719609047572,-526.04,0.00022191,4]
[330598374,1719609047583,-819.47,0.00022191,4]
[330598376,1719609047592,-905.98,0.00022191,4]
[330598378,1719609047601,-500.0,0.00022191,4]
[330598380,1719609047611,-500.0,0.00022191,4]
[330598382,1719609047620,-500.0,0.00022191,4]
[330598384,1719609047629,-542.29452741,0.00022191,4]
[330598386,1719609047639,-500.0,0.00022191,4]
[330598388,1719609047648,-500.0,0.00022191,4]
[330598390,1719609047658,-1589.77,0.00022191,4]
[330598392,1719609047667,-500.0,0.00022191,4]
[330598394,1719609047677,-500.0,0.00022191,4]
[330598396,1719609047686,-508.03813426,0.00022191,4]
[330598398,1719609047698,-500.0,0.00022191,4]
[330598400,1719609047707,-1414.16,0.00022191,4]
[330598402,1719609047716,-514.41,0.00022191,4]
[330598404,1719609047725,-500.0,0.00022191,4]
[330598406,1719609047734,-500.0,0.00022191,4]
[330598408,1719609047743,-633.98676371,0.00022191,4]
[330598410,1719609047752,-549.62,0.00022191,4]
[330598412,1719609047762,-1020.77,0.00022191,4]
[330598414,1719609047771,-500.0,0.00022191,4]
[330598416,1719609047781,-500.0,0.00022191,4]
[330598417,1719609047790,-500.0,0.00022191,4]
[330598420,1719609047800,-2333.86,0.00022191,4]
[330598421,1719609047809,-500.0,0.00022191,4]
[330598423,1719609047819,-500.0,0.00022191,4]
[330598426,1719609047828,-500.0,0.00022191,4]
[330598428,1719609047838,-718.41,0.00022191,4]
[330598430,1719609047847,-500.0,0.00022191,4]
[330598431,1719609047857,-632.14,0.00022191,4]
[330598433,1719609047866,-500.0,0.00022191,4]
[330598434,1719609047875,-2254.28,0.00022191,4]
[330598435,1719609047884,-1134.77,0.00022191,4]
[330598436,1719609047895,-500.0,0.00022191,4]
[330598437,1719609047904,-500.0,0.00022191,4]
[330598438,1719609047913,-601.36668336,0.00022191,4]
[330598439,1719609047922,-500.0,0.00022191,4]
[330598440,1719609047931,-552.34,0.00022191,4]
[330598441,1719609047943,-443.78705209,0.00022191,4]
[330598442,1719609047955,-655.59,0.00022191,4]
[330598443,1719609047965,-344.32870603,0.00022191,4]
[330598444,1719609047975,-500.0,0.00022191,4]
[330598445,1719609047985,-500.0,0.00022191,4]
[330598446,1719609047994,-500.0,0.00022191,4]
[330598447,1719609048011,-500.0,0.00022191,4]
[330598448,1719609048024,-1584.44,0.00022191,4]
[330598449,1719609048034,-705.63,0.00022191,4]
[330598450,1719609048046,-500.0,0.00022191,4]
[330598451,1719609048056,-992.69,0.00022191,4]
[330598452,1719609048065,-644.145091,0.00022191,7]
[330598453,1719609048075,-644.145091,0.00022191,7]
[330598454,1719609048085,-963.94,0.00022191,4]
[330598455,1719609048094,-500.0,0.00022191,4]
[330598456,1719609048104,-2618.52,0.00022191,4]
[330598457,1719609048113,-502.76110199,0.00022191,4]
[330598458,1719609048122,-500.0,0.00022191,4]
[330598459,1719609048131,-423.80163528,0.00022191,4]
[330598460,1719609048140,-775.03,0.00022191,4]
[330598461,1719609048150,-500.0,0.00022191,4]
[330598462,1719609048239,-500.0,0.00022191,4]
[330598463,1719609048248,-500.0,0.00022191,4]
[330598464,1719609048258,-500.0,0.00022191,4]
[330598465,1719609048267,-1047.09,0.00022191,4]
[330598466,1719609048276,-500.0,0.00022191,4]
[330598467,1719609048286,-597.64,0.00022191,4]
[330598468,1719609048295,-500.0,0.00022191,4]
[330598469,1719609048304,-1602.1,0.00022191,4]
[330598470,1719609048313,-619.46,0.00022191,4]
[330598471,1719609048323,-500.0,0.00022191,4]
[330598472,1719609048332,-748.7,0.00022191,4]
[330598473,1719609048342,-1252.86,0.00022191,4]
[330598474,1719609048351,-500.0,0.00022191,4]
[330598475,1719609048360,-543.19229115,0.00022191,4]
[330598476,1719609048371,-725.68,0.00022191,4]
[330598477,1719609048379,-500.0,0.00022191,4]
[330598478,1719609048388,-3105.39,0.00022191,4]
[330598479,1719609048398,-500.0,0.00022191,4]
[330598480,1719609048407,-369.14114341,0.00022191,4]
[330598481,1719609048417,-500.0,0.00022191,4]
[330598482,1719609048426,-500.0,0.00022191,4]
[330598483,1719609048435,-500.0,0.00022191,4]
[330598484,1719609048446,-1391.86,0.00022191,4]
[330598485,1719609048455,-500.0,0.00022191,4]
[330598486,1719609048463,-500.0,0.00022191,4]
[330598487,1719609048473,-1221.39,0.00022191,4]
[330598488,1719609048482,-598.89,0.00022191,4]
[330598489,1719609048491,-500.0,0.00022191,4]
[330598490,1719609048501,-500.0,0.00022191,4]
[330598491,1719609048510,-761.97,0.00022191,4]
[330598492,1719609048520,-500.0,0.00022191,4]
[330598493,1719609048529,-500.0,0.00022191,4]
[330598494,1719609048538,-500.0,0.00022191,4]
[330598495,1719609048547,-500.0,0.00022191,4]
[330598496,1719609048556,-500.0,0.00022191,4]
[330598497,1719609048565,-1916.95,0.00022191,4]
[330598498,1719609048573,-500.0,0.00022191,4]
[330598499,1719609048583,-500.0,0.00022191,4]
[330598500,1719609048591,-911.28,0.00022191,4]
[330598501,1719609048600,-500.0,0.00022191,4]
[330598502,1719609048610,-3430.95,0.00022191,4]
[330598503,1719609048619,-505.71236706,0.00022191,4]
[330598504,1719609048627,-500.0,0.00022191,4]
[330598505,1719609048636,-1274.5,0.00022191,2]
[330598506,1719609048645,-786.07,0.00022191,4]
[330598507,1719609048654,-1472.43,0.00022191,4]
[330598508,1719609048662,-2096.46,0.00022191,4]
[330598509,1719609048670,-500.0,0.00022191,4]
[330598510,1719609048679,-500.0,0.00022191,4]
[330598511,1719609048688,-500.0,0.00022191,4]
[330598512,1719609048699,-500.0,0.00022191,4]
[330598513,1719609048708,-713.1,0.00022191,4]
[330598514,1719609048717,-1080.39,0.00022191,4]
[330598515,1719609048727,-500.0,0.00022191,4]
[330598516,1719609048735,-500.0,0.00022191,4]
[330598517,1719609048744,-500.0,0.00022191,4]
[330598518,1719609048753,-2759.26,0.00022191,4]
[330598519,1719609048762,-500.0,0.00022191,4]
[330598520,1719609048771,-500.0,0.00022191,4]
[330598521,1719609048780,-1561.25,0.00022191,4]
[330598522,1719609048795,-500.0,0.00022191,4]
[330598523,1719609048815,-500.0,0.00022191,4]
[330598524,1719609048832,-1056.09,0.00022191,4]
[330598525,1719609048853,-500.0,0.00022191,4]
[330598526,1719609048874,-500.0,0.00022191,4]
[330598527,1719609048892,-500.0,0.00022191,4]
[330598528,1719609048909,-626.89,0.00022191,4]
[330598529,1719609048926,-644.23,0.00022191,4]
[330598530,1719609048940,-500.0,0.00022191,4]
[330598531,1719609048959,-919.74,0.00022191,4]
[330598532,1719609048978,-500.0,0.00022191,4]
[330598533,1719609048994,-533.13750238,0.00022191,4]
[330598534,1719609049014,-272.30766038,0.00022191,4]
[330598535,1719609049031,-500.0,0.00022191,4]
[330598536,1719609049046,-500.0,0.00022191,4]
[330598537,1719609049062,-1445.87,0.00022191,4]
[330598538,1719609049077,-526.73,0.00022191,4]
[330598539,1719609049091,-500.0,0.00022191,4]
[330598540,1719609049106,-500.0,0.00022191,4]
[330598541,1719609049121,-500.0,0.00022191,4]
[330598542,1719609049136,-500.0,0.00022191,4]
[330598543,1719609049151,-500.0,0.00022191,4]
[330598544,1719609049166,-900.52,0.00022191,4]
[330598545,1719609049182,-500.0,0.00022191,4]
[330598546,1719609049198,-2606.56,0.00022191,4]
[330598547,1719609049212,-500.0,0.00022191,2]
[330598548,1719609049225,-500.0,0.00022191,4]
[330598549,1719609049239,-2915.15,0.00022191,4]
[330598550,1719609049253,-1075.26,0.00022191,4]
[330598551,1719609049267,-898.0,0.00022191,4]
[330598552,1719609049281,-500.0,0.00022191,4]
[330598553,1719609049295,-1017.0,0.00022191,4]
[330598554,1719609049309,-500.0,0.00022191,4]
[330598555,1719609049323,-500.0,0.00022191,4]
[330598556,1719609049338,-500.0,0.00022191,4]
[330598557,1719609049352,-769.17,0.00022191,4]
[330598558,1719609049367,-500.0,0.00022191,4]
[330598559,1719609049381,-724.43,0.00022191,4]
[330598560,1719609049395,-500.0,0.00022191,4]
[330598561,1719609049409,-500.0,0.00022191,4]
[330598562,1719609049423,-500.0,0.00022191,4]
[330598563,1719609049438,-1811.19,0.00022191,4]
[330598564,1719609049454,-500.0,0.00022191,4]
[330598565,1719609049469,-745.75,0.00022191,4]
[330598566,1719609049487,-500.0,0.00022191,4]
[330598567,1719609049501,-500.0,0.00022191,4]
[330598568,1719609049516,-500.0,0.00022191,4]
[330598569,1719609049530,-555.14,0.00022191,4]
[330598570,1719609049544,-488.13449617,0.00022191,4]
[330598571,1719609049558,-500.0,0.00022191,4]
[330598572,1719609049573,-1060.47,0.00022191,4]
[330598573,1719609049588,-561.23,0.00022191,4]
[330598574,1719609049603,-1646.45,0.00022191,4]
[330598575,1719609049618,-500.0,0.00022191,4]
[330598576,1719609049628,-500.0,0.00022191,4]
[330598577,1719609049637,-500.0,0.00022191,4]
[330598578,1719609049646,-500.0,0.00022191,4]
[330598579,1719609049656,-1636.48,0.00022191,4]
[330598580,1719609049666,-500.0,0.00022191,4]
[330598581,1719609049676,-2903.41,0.00022191,4]
[330598588,1719609049837,-500.0,0.00022191,4]
[330598590,1719609049862,-500.0,0.00022191,4]
[330598591,1719609049874,-23113.58,0.00022191,4]
[330598592,1719609049886,-882.01,0.00022191,4]
[330598594,1719609049896,-500.0,0.00022191,4]
[330598596,1719609049905,-1643.03,0.00022191,4]
[330598598,1719609049916,-500.0,0.00022191,4]
[330598600,1719609049927,-500.0,0.00022191,4]
[330598602,1719609049936,-628.52,0.00022191,4]
[330598604,1719609049949,-500.0,0.00022191,4]
[330598605,1719609049959,-500.0,0.00022191,4]
[330598606,1719609049968,-1414.53,0.00022191,4]
[330598608,1719609049981,-500.0,0.00022191,4]
[330598610,1719609049991,-500.0,0.00022191,4]
[330598612,1719609050001,-500.0,0.00022191,4]
[330598614,1719609050013,-500.0,0.00022191,4]
[330598616,1719609050022,-11320.71,0.00022191,4]
[330598618,1719609050031,-500.0,0.00022191,4]
[330598620,1719609050043,-555.85,0.00022191,4]
[330598622,1719609050054,-500.0,0.00022191,4]
[330598624,1719609050064,-644.76,0.00022191,4]
[330598626,1719609050075,-585.25,0.00022191,4]
[330598628,1719609050085,-756.94,0.00022191,4]
[330598630,1719609050100,-500.0,0.00022191,4]
[330598632,1719609050109,-163.38655752,0.00022191,4]
[330598634,1719609050119,-500.0,0.00022191,4]
[330598636,1719609050128,-1188.67,0.00022191,4]
[330598638,1719609050137,-500.0,0.00022191,4]
[330598640,1719609050146,-1280.69,0.00022191,4]
[330598642,1719609050155,-500.0,0.00022191,4]
[330598644,1719609050165,-788.02,0.00022191,4]